fUSD/lending_fUSD_20240215
["ID","MTS","AMOUNT","RATE_DAILY","PERIOD"]
[314137493,1708019432899,-150.91,0.00036445,2]
[314137494,1708019432910,-1000.0,0.00036549,10]
[314137495,1708019432920,-1000.0,0.00036549,10]
[314137496,1708019432930,-42049.3873413,0.00036557,2]
[314137497,1708019432940,-2250.31634782,0.00036564,5]
[314137498,1708019432950,-1000.0,0.00036564,10]
[314137499,1708019432960,-237.73371089,0.00036564,5]
[314137500,1708019432971,-392.45215159,0.00036564,5]
[314137501,1708019432982,-285.93136163,0.00036564,5]
[314137502,1708019432992,-205.0,0.00036595,2]
[314137503,1708019433003,-424.68,0.00036618,2]
[314137504,1708019433012,-150.91,0.0003663,2]
[314137505,1708019433022,-151.0,0.00036765,120]
[314137506,1708019433032,-424.68,0.00036799,2]
[314137507,1708019433042,-219.93,0.00036842,2]
[314137508,1708019433052,-496.64,0.00036968,2]
[314137509,1708019433061,-424.68,0.0003698,2]
[314137510,1708019433071,-635.57,0.0003699,2]
[314137511,1708019433081,-600.0,0.00037,38]
[314137512,1708019433090,-2500.0,0.00037,2]
[314137513,1708019433100,-5364.0,0.00037,2]
[314137514,1708019433110,-1267.0,0.00037,2]
[314137515,1708019433119,-673.72,0.00037015,2]
[314137516,1708019433129,-152.03,0.00037091,2]
[314137517,1708019433139,-42049.3873413,0.0003711,2]
[314137518,1708019433148,-424.68,0.00037162,2]
[314137519,1708019433158,-424.68,0.00037343,2]
[314137520,1708019433168,-2833.0,0.00037498,6]
[314137521,1708019433178,-687.08930327,0.00037499,2]
[314137522,1708019433188,-200.0,0.000375,2]
[314137523,1708019433198,-1000.0,0.000375,2]
[314137524,1708019433208,-151.0,0.00037515,30]
[314137525,1708019433219,-424.68,0.00037524,2]
[314137526,1708019433229,-3423.24,0.00037545,2]
[314137527,1708019433238,-3704.05,0.00037545,2]
[314137528,1708019433248,-504.86211584,0.000376,3]
[314137529,1708019433257,-42049.3873413,0.00037664,2]
[314137530,1708019433267,-87438.14070194,0.000377,2]
[314137531,1708019433277,-424.68,0.00037705,2]
[314137532,1708019433286,-1112.67710723,0.00037739,2]
[314137533,1708019433296,-635.57,0.0003777,2]
[314137534,1708019433305,-4218.17248117,0.00037777,2]
[314137535,1708019433315,-152.77622437,0.00037777,2]
[314137536,1708019433325,-2923.37682447,0.0003778,2]
[314137537,1708019433335,-5000.0,0.0003778,3]
[314137538,1708019433345,-551.95746836,0.0003778,28]
[314137539,1708019433355,-677.74041661,0.0003778,2]
[314137540,1708019433364,-521.33755358,0.0003778,2]
[314137541,1708019433373,-55555.0,0.0003778,3]
[314137542,1708019433382,-245.94,0.000378,30]
[314137543,1708019433392,-245.94,0.000378,2]
[314137544,1708019433401,-150.0,0.00037814,2]
[314137545,1708019433412,-200.0,0.0003787,7]
[314137546,1708019433575,-47729.88719228,0.00037875,7]
[314137547,1708019433585,-55616.19300432,0.00037877,2]
[314137548,1708019433594,-1000.0,0.00037879,2]
[314137549,1708019433604,-1034.9355,0.00037879,2]
[314137550,1708019433613,-666.0,0.00037879,2]
[314137551,1708019433632,-150.0,0.00037879,2]
[314137552,1708019433643,-150.0,0.00037879,2]
[314137553,1708019433653,-150.0,0.00037879,2]
[314137554,1708019433663,-150.0,0.00037879,2]
[314137555,1708019433672,-150.0,0.00037879,2]
[314137556,1708019433683,-150.0,0.00037879,2]
[314137557,1708019433693,-150.0,0.00037879,2]
[314137558,1708019433702,-150.0,0.00037879,2]
[314137559,1708019433712,-651433.01898288,0.0003788,2]
[314137560,1708019437474,-6053.5,0.000377,3]
[314137561,1708019437759,-53496.39945436,0.000377,3]
[314137562,1708019437799,-2377.61778837,0.000377,3]
[314137563,1708019437810,-4696.84734469,0.000377,3]
[314137564,1708019437822,-4817.86841662,0.000377,3]
[314137566,1708019437833,-1050.55056104,0.000377,3]
[314137569,1708019437848,-5213.9087,0.000377,3]
[314137572,1708019437864,-24070.49876998,0.000377,3]
[314137696,1708019440028,-2420.4,0.000377,3]
[314137697,1708019440689,-211684.94004948,0.000377,3]
[314137698,1708019440699,-1811.65424148,0.0003788,3]
[314137699,1708019440709,-6347657.79762943,0.0003788,2]
[314137700,1708019440720,-207.08859098,0.0003788,2]
[314137701,1708019440731,-6421.16623997,0.0003788,2]
[314137702,1708019440742,-6421.16623997,0.0003788,2]
[314137703,1708019440751,-201.7923836,0.0003788,2]
[314137704,1708019440760,-424.68,0.00037887,2]
[314137705,1708019440771,-551.95746835,0.00037899,28]
[314137706,1708019440781,-150.0,0.00037899,2]
[314137707,1708019440791,-150.0,0.00037899,2]
[314137708,1708019440800,-500.0,0.000379,2]
[314137709,1708019440811,-500.0,0.000379,2]
[314137710,1708019440820,-500.0,0.000379,2]
[314137711,1708019440831,-500.0,0.000379,2]
[314137712,1708019440841,-500.0,0.000379,2]
[314137713,1708019440851,-500.0,0.000379,2]
[314137714,1708019440861,-500.0,0.000379,2]
[314137715,1708019440872,-500.0,0.000379,2]
[314137716,1708019440883,-500.0,0.000379,2]
[314137717,1708019440893,-500.0,0.000379,2]
[314137718,1708019440903,-500.0,0.000379,2]
[314137719,1708019440913,-500.0,0.000379,2]
[314137720,1708019440923,-500.0,0.000379,2]
[314137721,1708019440935,-500.0,0.000379,2]
[314137722,1708019440945,-500.0,0.000379,2]
[314137723,1708019440957,-500.0,0.000379,2]
[314137724,1708019440967,-500.0,0.000379,2]
[314137725,1708019440980,-500.0,0.000379,2]
[314137726,1708019440990,-500.0,0.000379,2]
[314137727,1708019441001,-500.0,0.000379,2]
[314137728,1708019441011,-500.0,0.000379,2]
[314137729,1708019441021,-500.0,0.000379,2]
[314137730,1708019441031,-500.0,0.000379,2]
[314137731,1708019441041,-500.0,0.000379,2]
[314137732,1708019441051,-500.0,0.000379,2]
[314137733,1708019441060,-500.0,0.000379,2]
[314137734,1708019441070,-500.0,0.000379,2]
[314137735,1708019441080,-500.0,0.000379,2]
[314137736,1708019441090,-500.0,0.000379,2]
[314137737,1708019441100,-500.0,0.000379,2]
[314137738,1708019441110,-500.0,0.000379,2]
[314137739,1708019441120,-500.0,0.000379,2]
[314137740,1708019441129,-500.0,0.000379,2]
[314137741,1708019441139,-500.0,0.000379,2]
[314137742,1708019441148,-500.0,0.000379,2]
[314137743,1708019441158,-500.0,0.000379,2]
[314137744,1708019441168,-500.0,0.000379,2]
[314137745,1708019441178,-500.0,0.000379,2]
[314137746,1708019441187,-500.0,0.000379,2]
[314137747,1708019441198,-500.0,0.000379,2]
[314137748,1708019441207,-500.0,0.000379,2]
[314137749,1708019441218,-500.0,0.000379,2]
[314137750,1708019441228,-500.0,0.000379,2]
[314137751,1708019441238,-500.0,0.000379,2]
[314137752,1708019441247,-500.0,0.000379,2]
[314137753,1708019441256,-500.0,0.000379,2]
[314137754,1708019441266,-500.0,0.000379,2]
[314137755,1708019441276,-500.0,0.000379,2]
[314137756,1708019441286,-500.0,0.000379,2]
[314137757,1708019441295,-500.0,0.000379,2]
[314137758,1708019441305,-500.0,0.000379,2]
[314137759,1708019441315,-500.0,0.000379,2]
[314137760,1708019441324,-500.0,0.000379,2]
[314137761,1708019441334,-500.0,0.000379,2]
[314137762,1708019441343,-500.0,0.000379,2]
[314137763,1708019441353,-500.0,0.000379,2]
[314137764,1708019441362,-500.0,0.000379,2]
[314137765,1708019441372,-500.0,0.000379,2]
[314137766,1708019441381,-500.0,0.000379,2]
[314137767,1708019441390,-545.51,0.000379,2]
[314137768,1708019441400,-500.0,0.000379,2]
[314137769,1708019441409,-633081.183151,0.000379,3]
[314137770,1708019441420,-152.77622427,0.00037973,2]
[314137771,1708019441429,-600.0,0.00038,39]
[314137772,1708019441441,-680.33209302,0.00038,2]
[314137773,1708019441450,-203.0,0.00038,2]
[314137774,1708019441460,-168.28,0.00038,3]
[314137775,1708019441469,-163.71291342,0.00038016,7]
[314137776,1708019441479,-677.74041661,0.00038018,2]
[314137777,1708019441489,-551.95746835,0.00038018,29]
[314137778,1708019441498,-521.33755357,0.00038018,2]
[314137779,1708019441509,-1550.26,0.00038044,2]
[314137780,1708019441520,-369.55506616,0.00038061,10]
[314137781,1708019441529,-326.28,0.00038061,2]
[314137782,1708019441540,-200.0,0.00038084,3]
[314137783,1708019441549,-899.0,0.000381,2]
[314137784,1708019441560,-2000.0,0.000381,2]
[314137785,1708019441572,-245000.0,0.00038105,2]
[314137786,1708019441582,-1000.0,0.00038105,2]
[314137787,1708019441592,-551.95746835,0.00038137,29]
[314137788,1708019441601,-152.77622427,0.0003817,2]
[314137789,1708019441612,-4968.54869686,0.00038197,7]
[314137790,1708019441621,-2015.41634188,0.00038201,7]
[314137791,1708019441630,-150.0,0.00038205,2]
[314137792,1708019441640,-150.0,0.00038205,2]
[314137793,1708019441649,-262915.35273852,0.00038206,7]
[314137794,1708019441658,-262915.35273852,0.00038216,7]
[314137795,1708019441668,-42049.3873413,0.00038218,2]
[314137796,1708019441678,-2015.41634188,0.00038219,7]
[314137797,1708019441687,-389.0,0.00038231,2]
[314137798,1708019441696,-1369.0,0.00038231,2]
[314137799,1708019441706,-2834.0,0.00038231,2]
[314137800,1708019441715,-453.0,0.00038231,2]
[314137801,1708019441725,-327.052,0.00038231,2]
[314137802,1708019441734,-1864.0,0.00038231,2]
[314137803,1708019441744,-953.0,0.00038231,2]
[314137804,1708019441753,-841.0,0.00038231,2]
[314137805,1708019441762,-708.0,0.00038231,2]
[314137806,1708019441772,-1231.0,0.00038231,2]
[314137807,1708019441781,-1950.493,0.00038231,2]
[314137808,1708019441790,-1254.0,0.00038231,2]
[314137809,1708019441799,-217.864,0.00038231,2]
[314137810,1708019441809,-603.259,0.00038231,2]
[314137811,1708019441819,-430.707,0.00038231,2]
[314137812,1708019441829,-857.0,0.00038231,2]
[314137813,1708019441838,-238.465,0.00038231,2]
[314137814,1708019441847,-1008.352,0.00038231,2]
[314137815,1708019441856,-252.714,0.00038231,2]
[314137816,1708019441865,-343.0,0.00038231,2]
[314137817,1708019441875,-1138.0,0.00038231,2]
[314137818,1708019441884,-321.688,0.00038231,2]
[314137819,1708019441894,-2434.002,0.00038231,2]
[314137820,1708019441903,-454.0,0.00038231,2]
[314137821,1708019441913,-150.0,0.00038231,2]
[314137822,1708019441922,-4059.0,0.00038231,2]
[314137823,1708019441932,-150.0,0.00038231,2]
[314137824,1708019441941,-42562.0,0.00038231,2]
[314137825,1708019441951,-2926.0,0.00038231,2]
[314137826,1708019441962,-8162.0,0.00038231,2]
[314137827,1708019441971,-7438.215,0.00038231,2]
[314137828,1708019441982,-2289.0,0.00038231,2]
[314137829,1708019441991,-19841.0,0.00038231,2]
[314137830,1708019442000,-5644.225,0.00038231,2]
[314137831,1708019442010,-150.0,0.00038231,2]
[314137832,1708019442019,-150.0,0.00038231,2]
[314137833,1708019442029,-181.268,0.00038231,2]
[314137834,1708019442038,-1038.664,0.00038231,2]
[314137835,1708019442047,-1676.25842367,0.00038242,7]
[314137836,1708019442056,-153.81499,0.00038244,2]
[314137837,1708019442066,-1676.25842367,0.00038254,7]
[314137838,1708019442076,-4968.54869686,0.00038255,7]
[314137839,1708019442085,-1000.0,0.00038256,2]
[314137840,1708019442095,-677.74041661,0.00038256,2]
[314137841,1708019442104,-551.95746835,0.00038256,29]
[314137842,1708019442113,-521.33755357,0.00038256,2]
[314137843,1708019442123,-262915.35273852,0.0003826,7]
[314137844,1708019442132,-2015.41634188,0.00038262,7]
[314137845,1708019442141,-496.64,0.00038275,2]
[314137846,1708019442151,-151.0,0.00038281,7]
[314137847,1708019442161,-1676.25842367,0.00038291,7]
[314137848,1708019442172,-4968.54869686,0.00038293,7]
[314137849,1708019442181,-200.0,0.000383,12]
[314137850,1708019442190,-200.0,0.0003832,3]
[314137851,1708019442200,-800.0,0.0003832,5]
[314137853,1708019442209,-800.0,0.00038321,5]
[314137855,1708019442219,-800.0,0.00038321,5]
[314137857,1708019442229,-200.0,0.00038321,10]
[314137858,1708019442238,-500.0,0.00038321,10]
[314137859,1708019442248,-1000.0,0.00038355,2]
[314137860,1708019442258,-150.0,0.00038355,2]
[314137861,1708019442267,-150.0,0.00038355,2]
[314137862,1708019442277,-451.89196897,0.00038356,7]
[314137863,1708019442286,-506.35855649,0.00038356,7]
[314137864,1708019442295,-200.0,0.00038356,7]
[314137865,1708019442305,-500.0,0.00038356,7]
[314137866,1708019442314,-500.0,0.00038356,7]
[314137867,1708019442323,-558.6501485,0.00038356,7]
[314137868,1708019442333,-192.00598352,0.00038356,7]
[314137869,1708019442343,-500.0,0.00038356,7]
[314137870,1708019442352,-561.62526642,0.00038356,7]
[314137871,1708019442361,-500.0,0.00038356,7]
[314137872,1708019442371,-500.0,0.00038356,7]
[314137873,1708019442380,-500.0,0.00038356,7]
[314137874,1708019442389,-517.2348012,0.00038356,7]
[314137875,1708019442399,-500.0,0.00038356,7]
[314137876,1708019442408,-500.0,0.00038356,7]
[314137877,1708019442418,-505.64357446,0.00038356,7]
[314137878,1708019442428,-500.0,0.00038356,7]
[314137879,1708019442440,-500.0,0.00038356,7]
[314137880,1708019442450,-500.0,0.00038356,7]
[314137881,1708019442459,-500.0,0.00038356,7]
[314137882,1708019442468,-500.0,0.00038356,7]
[314137883,1708019442478,-426.54716106,0.00038356,7]
[314137884,1708019442487,-590.28669053,0.00038356,7]
[314137885,1708019442496,-514.1186548,0.00038356,7]
[314137886,1708019442505,-500.0,0.00038356,7]
[314137887,1708019442516,-500.0,0.00038356,7]
[314137888,1708019442526,-500.0,0.00038356,7]
[314137889,1708019442535,-500.0,0.00038356,7]
[314137890,1708019442545,-500.0,0.00038356,7]
[314137891,1708019442554,-500.0,0.00038356,7]
[314137892,1708019442563,-500.0,0.00038356,7]
[314137893,1708019442573,-500.0,0.00038356,7]
[314137894,1708019442582,-500.0,0.00038356,7]
[314137895,1708019442591,-500.0,0.00038356,7]
[314137896,1708019442600,-500.0,0.00038356,7]
[314137897,1708019442609,-500.0,0.00038356,7]
[314137898,1708019442618,-500.0,0.00038356,7]
[314137899,1708019442628,-500.0,0.00038356,7]
[314137900,1708019442637,-500.0,0.00038356,7]
[314137901,1708019442647,-500.0,0.00038356,7]
[314137902,1708019442657,-500.0,0.00038356,7]
[314137903,1708019442666,-500.0,0.00038356,7]
[314137904,1708019442676,-500.0,0.00038356,7]
[314137905,1708019442685,-500.0,0.00038356,7]
[314137906,1708019442695,-500.0,0.00038356,7]
[314137907,1708019442705,-500.0,0.00038356,7]
[314137908,1708019442714,-500.0,0.00038356,7]
[314137909,1708019442724,-500.0,0.00038356,7]
[314137910,1708019442734,-500.0,0.00038356,7]
[314137911,1708019442743,-500.0,0.00038356,7]
[314137912,1708019442752,-500.0,0.00038356,7]
[314137913,1708019442761,-500.0,0.00038356,7]
[314137914,1708019442771,-500.0,0.00038356,7]
[314137915,1708019442780,-500.0,0.00038356,7]
[314137916,1708019442790,-500.0,0.00038356,7]
[314137917,1708019442799,-500.0,0.00038356,7]
[314137918,1708019442808,-509.90466358,0.00038356,7]
[314137919,1708019442818,-541.83,0.00038356,7]
[314137920,1708019442827,-500.0,0.00038356,7]
[314137921,1708019442836,-500.0,0.00038356,7]
[314137922,1708019442846,-151.82752414,0.00038356,7]
[314137923,1708019442855,-500.0,0.00038356,7]
[314137924,1708019442864,-500.0,0.00038356,7]
[314137925,1708019442874,-500.0,0.00038356,7]
[314137926,1708019442884,-500.0,0.00038356,7]
[314137928,1708019442893,-500.0,0.00038356,7]
[314137929,1708019442902,-500.0,0.00038356,7]
[314137930,1708019442911,-500.0,0.00038356,7]
[314137931,1708019442921,-500.0,0.00038356,7]
[314137932,1708019442930,-500.0,0.00038356,7]
[314137933,1708019442939,-500.0,0.00038356,7]
[314137935,1708019442949,-500.0,0.00038356,7]
[314137936,1708019442958,-500.0,0.00038356,7]
[314137937,1708019442968,-500.0,0.00038356,7]
[314137938,1708019442977,-500.0,0.00038356,7]
[314137939,1708019442986,-408.30895845,0.00038356,7]
[314137940,1708019442996,-500.0,0.00038356,7]
[314137941,1708019443005,-536.67837406,0.00038356,7]
[314137942,1708019443015,-500.0,0.00038356,7]
[314137943,1708019443025,-500.0,0.00038356,7]
[314137944,1708019443034,-533.5616728,0.00038356,7]
[314137945,1708019443043,-500.0,0.00038356,7]
[314137946,1708019443052,-500.0,0.00038356,7]
[314137947,1708019443062,-515.03881383,0.00038356,7]
[314137948,1708019443072,-518.53814724,0.00038356,7]
[314137949,1708019443081,-549.31038914,0.00038356,7]
[314137950,1708019443091,-530.12,0.00038356,7]
[314137951,1708019443100,-500.0,0.00038356,7]
[314137952,1708019443110,-500.0,0.00038356,7]
[314137953,1708019443119,-178.08075211,0.00038356,7]
[314137954,1708019443129,-307.62166054,0.00038356,7]
[314137955,1708019443138,-500.0,0.00038356,7]
[314137956,1708019443148,-506.07393251,0.00038356,7]
[314137957,1708019443158,-500.0,0.00038356,7]
[314137958,1708019443167,-516.40652502,0.00038356,7]
[314137959,1708019443176,-250.0,0.00038356,7]
[314137960,1708019443186,-500.0,0.00038356,7]
[314137961,1708019443195,-500.0,0.00038356,7]
[314137962,1708019443205,-500.0,0.00038356,7]
[314137963,1708019443215,-514.59946361,0.00038356,7]
[314137964,1708019443225,-223.8499213,0.00038356,7]
[314137965,1708019443235,-500.0,0.00038356,7]
[314137966,1708019443244,-516.22315485,0.00038356,7]
[314137967,1708019443254,-512.11301146,0.00038356,7]
[314137968,1708019443263,-856.02,0.00038356,7]
[314137969,1708019443272,-516.19018312,0.00038356,7]
[314137970,1708019443416,-537.56335912,0.00038356,7]
[314137971,1708019443432,-584.72701433,0.00038356,7]
[314137972,1708019443444,-523.01140006,0.00038356,7]
[314137973,1708019443453,-500.0,0.00038356,7]
[314137974,1708019443464,-526.70424754,0.00038356,7]
[314137975,1708019443473,-500.0,0.00038356,7]
[314137976,1708019443484,-500.0,0.00038356,7]
[314137977,1708019443493,-504.49,0.00038356,7]
[314137978,1708019443502,-500.0,0.00038356,7]
[314137979,1708019443513,-500.0,0.00038356,7]
[314137980,1708019443523,-500.0,0.00038356,7]
[314137981,1708019443532,-515.76640711,0.00038356,7]
[314137982,1708019443542,-500.0,0.00038356,7]
[314137983,1708019443551,-500.0,0.00038356,7]
[314137984,1708019443561,-500.0,0.00038356,7]
[314137985,1708019443570,-509.08298058,0.00038356,7]
[314137986,1708019443580,-500.0,0.00038356,7]
[314137987,1708019443589,-500.0,0.00038356,7]
[314137988,1708019443598,-500.0,0.00038356,7]
[314137989,1708019443608,-500.0,0.00038356,7]
[314137990,1708019443617,-500.0,0.00038356,7]
[314137991,1708019443627,-469.45724423,0.00038356,7]
[314137992,1708019443636,-500.0,0.00038356,7]
[314137993,1708019443646,-400.59550831,0.00038356,7]
[314137994,1708019443655,-500.0,0.00038356,7]
[314137995,1708019443665,-500.0,0.00038356,7]
[314137996,1708019443674,-500.0,0.00038356,7]
[314137997,1708019443684,-567.94231366,0.00038356,7]
[314137998,1708019443694,-235.39935837,0.00038356,7]
[314137999,1708019443703,-500.0,0.00038356,7]
[314138000,1708019443712,-500.0,0.00038356,7]
[314138001,1708019443722,-500.0,0.00038356,7]
[314138002,1708019443734,-500.0,0.00038356,7]
[314138003,1708019443743,-500.0,0.00038356,7]
[314138004,1708019443752,-500.0,0.00038356,7]
[314138005,1708019443762,-500.0,0.00038356,7]
[314138006,1708019443771,-500.0,0.00038356,7]
[314138007,1708019443780,-500.0,0.00038356,7]
[314138008,1708019443790,-582.34649453,0.00038356,7]
[314138009,1708019443799,-500.0,0.00038356,7]
[314138010,1708019443808,-500.0,0.00038356,7]
[314138011,1708019443818,-500.0,0.00038356,7]
[314138012,1708019443827,-500.0,0.00038356,7]
[314138013,1708019443836,-500.0,0.00038356,7]
[314138014,1708019443846,-500.0,0.00038356,7]
[314138015,1708019443855,-500.0,0.00038356,7]
[314138016,1708019443865,-500.0,0.00038356,7]
[314138017,1708019443875,-500.0,0.00038356,7]
[314138018,1708019443885,-500.0,0.00038356,7]
[314138019,1708019443894,-500.0,0.00038356,7]
[314138020,1708019443904,-500.0,0.00038356,7]
[314138021,1708019443914,-500.0,0.00038356,7]
[314138022,1708019443924,-500.0,0.00038356,7]
[314138023,1708019443934,-500.0,0.00038356,7]
[314138024,1708019443943,-500.0,0.00038356,7]
[314138025,1708019443953,-500.0,0.00038356,7]
[314138026,1708019443962,-500.0,0.00038356,7]
[314138027,1708019443971,-500.0,0.00038356,7]
[314138028,1708019443982,-500.0,0.00038356,7]
[314138029,1708019443992,-500.0,0.00038356,7]
[314138030,1708019444001,-500.0,0.00038356,7]
[314138031,1708019444011,-500.0,0.00038356,7]
[314138032,1708019444021,-756.7,0.00038356,7]
[314138033,1708019444030,-704.22,0.00038356,7]
[314138034,1708019444039,-500.0,0.00038356,7]
[314138035,1708019444049,-500.0,0.00038356,2]
[314138036,1708019444059,-500.0,0.00038356,7]
[314138037,1708019444068,-500.0,0.00038356,7]
[314138038,1708019444077,-500.0,0.00038356,7]
[314138039,1708019444087,-500.0,0.00038356,7]
[314138040,1708019444097,-500.0,0.00038356,7]
[314138041,1708019444107,-500.0,0.00038356,7]
[314138042,1708019444116,-500.0,0.00038356,7]
[314138043,1708019444125,-500.0,0.00038356,7]
[314138044,1708019444135,-500.0,0.00038356,7]
[314138045,1708019444145,-500.0,0.00038356,7]
[314138046,1708019444155,-500.0,0.00038356,7]
[314138047,1708019444164,-500.0,0.00038356,7]
[314138048,1708019444173,-543.74431644,0.00038356,7]
[314138049,1708019444182,-500.0,0.00038356,7]
[314138050,1708019444192,-1361.43,0.00038356,7]
[314138051,1708019444202,-500.0,0.00038356,7]
[314138052,1708019444211,-500.0,0.00038356,7]
[314138053,1708019444221,-500.0,0.00038356,7]
[314138054,1708019444231,-500.0,0.00038356,7]
[314138055,1708019444241,-500.0,0.00038356,7]
[314138056,1708019444250,-500.0,0.00038356,7]
[314138057,1708019444260,-500.0,0.00038356,7]
[314138058,1708019444269,-1000.0,0.00038356,7]
[314138059,1708019444279,-1000.0,0.00038356,7]
[314138060,1708019444289,-500.0,0.00038356,7]
[314138061,1708019444298,-500.0,0.00038356,7]
[314138062,1708019444308,-500.0,0.00038356,7]
[314138063,1708019444317,-500.0,0.00038356,7]
[314138064,1708019444327,-500.0,0.00038356,7]
[314138065,1708019444337,-500.0,0.00038356,7]
[314138066,1708019444347,-500.0,0.00038356,7]
[314138067,1708019444357,-532.95793462,0.00038356,7]
[314138068,1708019444366,-557.72879127,0.00038356,7]
[314138069,1708019444376,-500.0,0.00038356,7]
[314138070,1708019444385,-500.0,0.00038356,7]
[314138071,1708019444395,-257.76472445,0.00038356,7]
[314138072,1708019444404,-193.3525053,0.00038356,7]
[314138073,1708019444414,-500.0,0.00038356,7]
[314138074,1708019444424,-500.0,0.00038356,7]
[314138075,1708019444436,-1271.29,0.00038356,7]
[314138076,1708019444445,-500.0,0.00038356,7]
[314138077,1708019444455,-500.0,0.00038356,7]
[314138078,1708019444464,-500.0,0.00038356,7]
[314138079,1708019444474,-512.91372318,0.00038356,7]
[314138080,1708019444486,-500.0,0.00038356,7]
[314138081,1708019444495,-527.46818422,0.00038356,7]
[314138082,1708019444505,-500.0,0.00038356,7]
[314138083,1708019444517,-500.0,0.00038356,7]
[314138084,1708019444528,-500.0,0.00038356,7]
[314138085,1708019444538,-500.0,0.00038356,7]
[314138086,1708019444547,-500.0,0.00038356,7]
[314138087,1708019444556,-500.0,0.00038356,7]
[314138088,1708019444566,-500.0,0.00038356,7]
[314138089,1708019444575,-500.0,0.00038356,7]
[314138090,1708019444585,-598.49,0.00038356,7]
[314138091,1708019444594,-500.0,0.00038356,7]
[314138092,1708019444604,-503.58097272,0.00038356,7]
[314138093,1708019444613,-500.0,0.00038356,7]
[314138094,1708019444623,-618.85179848,0.00038356,7]
[314138095,1708019444632,-500.0,0.00038356,7]
[314138096,1708019444641,-500.0,0.00038356,7]
[314138097,1708019444650,-974.33,0.00038356,7]
[314138098,1708019444659,-223.5005991,0.00038356,7]
[314138099,1708019444668,-500.0,0.00038356,7]
[314138100,1708019444677,-500.0,0.00038356,7]
[314138101,1708019444686,-500.0,0.00038356,7]
[314138102,1708019444695,-500.0,0.00038356,7]
[314138103,1708019444704,-500.0,0.00038356,7]
[314138104,1708019444714,-500.0,0.00038356,7]
[314138105,1708019444722,-500.0,0.00038356,7]
[314138106,1708019444732,-500.0,0.00038356,7]
[314138107,1708019444744,-500.0,0.00038356,7]
[314138108,1708019444753,-500.0,0.00038356,7]
[314138109,1708019444763,-611.90119929,0.00038356,7]
[314138110,1708019444772,-500.0,0.00038356,7]
[314138111,1708019444781,-500.0,0.00038356,7]
[314138112,1708019444791,-500.0,0.00038356,7]
[314138113,1708019444805,-500.0,0.00038356,7]
[314138114,1708019444814,-500.0,0.00038356,7]
[314138115,1708019444823,-500.0,0.00038356,7]
[314138116,1708019444832,-500.0,0.00038356,7]
[314138117,1708019444842,-500.0,0.00038356,7]
[314138118,1708019444851,-500.0,0.00038356,7]
[314138119,1708019444860,-500.0,0.00038356,7]
[314138120,1708019444869,-500.0,0.00038356,7]
[314138121,1708019444877,-500.0,0.00038356,7]
[314138122,1708019444888,-500.0,0.00038356,7]
[314138123,1708019444897,-500.0,0.00038356,7]
[314138124,1708019444906,-500.0,0.00038356,7]
[314138125,1708019444915,-500.0,0.00038356,7]